fUST/lending_fUST_20250320
["ID","MTS","AMOUNT","RATE_DAILY","PERIOD"]
[356440082,1742458243066,-641.07465544,0.00025,7]
[356440084,1742458243077,-176.2233814,0.00032068,2]
[356440086,1742458243087,-205.38690964,0.000329,6]
[356440088,1742458243100,-784.68448311,0.0003296,2]
[356440090,1742458243110,-400.0,0.00032999,2]
[356440091,1742458243120,-22027.04645942,0.00033,2]
[356440093,1742458243130,-205.38690964,0.00033233,6]
[356440095,1742458243142,-186.1143907,0.00033464,4]
[356440097,1742458243152,-205.38690964,0.00033567,6]
[356440099,1742458243163,-209.79654598,0.00033699,7]
[356440101,1742458243172,-1758.5587124,0.000337,2]
[356440103,1742458243182,-169.85010156,0.00033709,2]
[356440105,1742458243192,-169.85010156,0.0003371,2]
[356440107,1742458243205,-160.0,0.0003371,2]
[356440109,1742458243215,-169.85010156,0.0003371,2]
[356440111,1742458243229,-2454.23217082,0.00033711,2]
[356440115,1742458243253,-169.85010156,0.00033711,2]
[356440117,1742458243266,-4430.63781654,0.000338,2]
[356440119,1742458243280,-3936.97173516,0.000338,2]
[356440121,1742458243293,-1476.87927218,0.00033801,2]
[356440123,1742458243303,-1312.32391172,0.00033801,2]
[356440125,1742458243314,-34901.50829175,0.00033801,2]
[356440127,1742458243324,-535.15446075,0.00033809,7]
[356440130,1742458243336,-155.08744966,0.0003381,20]
[356440131,1742458243347,-1656.83734674,0.0003381,20]
[356440133,1742458243358,-1346.57,0.0003381,21]
[356440135,1742458243369,-500.0,0.0003381,21]
[356440138,1742458243387,-1041.44,0.0003381,21]
[356440140,1742458243399,-500.0,0.0003381,21]
[356440142,1742458243411,-500.0,0.0003381,21]
[356440144,1742458243422,-567.5175641,0.0003381,21]
[356440146,1742458243434,-500.0,0.0003381,21]
[356440148,1742458243445,-1605.87,0.0003381,21]
[356440151,1742458243456,-1068.61,0.0003381,21]
[356440153,1742458243470,-500.0,0.0003381,21]
[356440155,1742458243482,-2958.77,0.0003381,21]
[356440157,1742458243498,-18407.88,0.0003381,21]
[356440160,1742458243510,-500.0,0.0003381,21]
[356440162,1742458243521,-575.191082,0.0003381,14]
[356440164,1742458243531,-12237.79,0.0003381,21]
[356440166,1742458243543,-575.191082,0.0003381,14]
[356440168,1742458243555,-1215.05,0.0003381,21]
[356440170,1742458243566,-575.191082,0.0003381,14]
[356440172,1742458243577,-575.191082,0.0003381,14]
[356440175,1742458243587,-3589.46,0.0003381,21]
[356440177,1742458243599,-1894.6,0.0003381,21]
[356440179,1742458243609,-1310.36,0.0003381,21]
[356440181,1742458243620,-838.59,0.0003381,21]
[356440183,1742458243631,-1164.19,0.0003381,21]
[356440185,1742458243642,-39365.22,0.0003381,21]
[356440187,1742458243652,-4282.92,0.0003381,21]
[356440190,1742458243663,-1043.46,0.0003381,21]
[356440192,1742458243674,-1257.35,0.0003381,21]
[356440194,1742458243685,-1894.03,0.0003381,21]
[356440195,1742458243695,-500.0,0.0003381,21]
[356440197,1742458243706,-7371.02,0.0003381,21]
[356440198,1742458243720,-500.0,0.0003381,21]
[356440199,1742458243730,-6778.28,0.0003381,21]
[356440200,1742458243741,-6778.28,0.0003381,21]
[356440201,1742458243751,-6778.28,0.0003381,21]
[356440202,1742458243762,-696.5,0.0003381,21]
[356440203,1742458243772,-14164.49,0.0003381,21]
[356440204,1742458243782,-1000.0,0.0003381,7]
[356440205,1742458243793,-500.0,0.0003381,21]
[356440206,1742458243803,-1948.95,0.0003381,21]
[356440207,1742458243813,-8796.25137799,0.0003381,21]
[356440208,1742458243827,-10186.71785657,0.0003381,21]
[356440213,1742458246257,-170.06076544,0.0003381,21]
[356440214,1742458246267,-1458.08,0.0003381,21]
[356440215,1742458246278,-33440.94,0.0003381,21]
[356440216,1742458246288,-1196.91,0.0003381,21]
[356440217,1742458246299,-314.18420037,0.0003381,21]
[356440218,1742458246309,-1813.84,0.0003381,21]
[356440219,1742458246319,-507.39,0.0003381,21]
[356440220,1742458246329,-537.41,0.0003381,21]
[356440221,1742458246340,-727.79,0.0003381,21]
[356440222,1742458246350,-516.34,0.0003381,21]
[356440223,1742458246360,-500.0,0.0003381,21]
[356440224,1742458246370,-2289.23,0.0003381,21]
[356440225,1742458246381,-823.55,0.0003381,21]
[356440226,1742458246392,-500.0,0.0003381,21]
[356440227,1742458246401,-794.16,0.0003381,21]
[356440228,1742458246411,-500.0,0.0003381,21]
[356440229,1742458246423,-3746.97,0.0003381,21]
[356440230,1742458246432,-500.0,0.0003381,21]
[356440231,1742458246442,-500.0,0.0003381,21]
[356440232,1742458246452,-7548.8,0.0003381,21]
[356440233,1742458246464,-683.09,0.0003381,21]
[356440234,1742458246475,-4649.84,0.0003381,21]
[356440235,1742458246485,-1474.55121467,0.0003381,21]
[356440236,1742458248761,-193.05046641,0.0003381,21]
[356440237,1742458263395,-150.0,0.00033809,2]
[356440238,1742458306044,-188.5442356,0.00033699,7]
[356440239,1742458322184,-300.0,0.0003381,21]
[356440246,1742459141612,-150.0,0.00032239,120]
[356440248,1742459170851,-218.86736841,0.0002,99]
[356440249,1742459271936,-63.05295613,0.0002,99]
[356440250,1742459271959,-148.68898711,0.0002,7]
[356440252,1742459275402,-186.8748709,0.0002,7]
[356440254,1742459283797,-220.40121909,0.00019999,2]
[356440258,1742459309431,278.00794879,0.0001,2]
[356440259,1742459315678,610.42257545,9e-05,2]
[356440260,1742459316187,-79.59878091,0.00019999,2]
[356440261,1742459316213,-140.80243817,0.0002,7]
[356440264,1742459319368,1000.0,0.0001,2]
[356440266,1742459343663,-151.0,0.00019999,2]
[356440267,1742459349106,-151.0,0.00019799,2]
[356440268,1742459349128,-149.0,0.00019999,2]
[356440269,1742459349150,-23.63370382,0.0002,7]
[356440270,1742459349170,-500.0,0.0002,7]
[356440271,1742459349192,-500.0,0.0002,7]
[356440272,1742459349212,-500.0,0.0002,7]
[356440273,1742459349233,-500.0,0.0002,7]
[356440274,1742459349254,-500.0,0.0002,7]
[356440275,1742459349276,-500.0,0.0002,7]
[356440276,1742459349296,-378.89032318,0.0002,7]
[356440287,1742459404600,-121.10967682,0.0002,7]
[356440288,1742459404624,-73.35786023,0.0002,7]
[356440303,1742459432442,-426.64213977,0.0002,7]
[356440306,1742459432453,-194.46753705,0.00022769,2]
[356440308,1742459432463,-300.0,0.00022999,2]
[356440310,1742459432474,-9390.03123456,0.00023,2]
[356440312,1742459432484,-206.6634536,0.000249,4]
[356440314,1742459432494,-420.0,0.00024967,2]
[356440316,1742459432503,-206.66345347,0.00025823,4]
[356440318,1742459432514,-206.66345347,0.00026746,4]
[356440319,1742459432524,-587.0,0.00027103,2]
[356440320,1742459432533,-206.66345347,0.00027669,4]
[356440321,1742459432544,-206.66345347,0.00028592,5]
[356440322,1742459432555,-487.0,0.00029422,2]
[356440323,1742459432565,-206.66345347,0.00029515,5]
[356440324,1742459432575,-557.1899167,0.00030393,2]
[356440325,1742459432585,-206.66345347,0.00030438,5]
[356440326,1742459432595,-206.66345347,0.00031362,6]
[356440327,1742459432605,-200.9110784,0.00031365,2]
[356440328,1742459432614,-304.79240148,0.000315,7]
[356440329,1742459432624,-212.3194406,0.00032075,2]
[356440330,1742459432634,-426.14444107,0.000321,120]
[356440331,1742459432644,-188.5442356,0.00032126,2]
[356440332,1742459432654,-225.9557375,0.00032139,2]
[356440333,1742459432664,-123.4511604,0.00032239,120]
[356440334,1742459432673,-206.66345347,0.00032285,6]
[356440336,1742459432683,-500.0,0.00032381,90]
[356440338,1742459432697,-11869.548942,0.00032535,2]
[356440341,1742459432708,-2020.9048839,0.00032596,2]
[356440343,1742459432717,-1538.73887335,0.000328,2]
[356440345,1742459432728,-500.0,0.00032876,21]
[356440347,1742459432738,-813.05,0.00032876,21]
[356440349,1742459432748,-500.0,0.00032876,21]
[356440351,1742459432759,-500.0,0.0003315,21]
[356440353,1742459432774,-813.05,0.0003315,21]
[356440355,1742459432784,-500.0,0.0003315,21]
[356440357,1742459432794,-1538.73887331,0.00033188,2]
[356440359,1742459432804,-206.66345347,0.00033208,6]
[356440361,1742459432814,-186.1143907,0.00033219,4]
[356440363,1742459432823,-426.57316926,0.00033362,7]
[356440366,1742459432833,-66431.21184361,0.00033363,2]
[356440368,1742459432846,-500.0,0.00033424,21]
[356440370,1742459432856,-813.05,0.00033424,21]
[356440372,1742459432866,-500.0,0.00033424,21]
[356440374,1742459432877,-1538.73887331,0.00033576,2]
[356440376,1742459432887,-169.85010156,0.00033589,2]
[356440378,1742459432897,-160.0,0.00033628,2]
[356440380,1742459432908,-1255.76,0.00033649,21]
[356440382,1742459432918,-37725.01,0.00033649,21]
[356440384,1742459432928,-500.0,0.00033649,21]
[356440386,1742459432938,-1815.11,0.00033649,21]
[356440388,1742459432948,-7063.9,0.00033649,21]
[356440390,1742459432957,-1000.0,0.00033649,7]
[356440393,1742459432968,-500.0,0.00033649,21]
[356440395,1742459432977,-18354.99,0.00033649,21]
[356440397,1742459432986,-1738.26,0.00033649,21]
[356440399,1742459432996,-1147.04,0.00033649,21]
[356440401,1742459433006,-500.0,0.00033649,21]
[356440403,1742459433017,-500.0,0.00033649,21]
[356440405,1742459433028,-3590.85,0.00033649,21]
[356440407,1742459433039,-654.63,0.00033649,21]
[356440409,1742459433049,-500.0,0.00033649,21]
[356440412,1742459433059,-10884.2,0.00033649,21]
[356440414,1742459433070,-19744.06,0.00033649,21]
[356440416,1742459433080,-500.0,0.00033649,21]
[356440418,1742459433090,-3715.33,0.00033649,21]
[356440420,1742459433100,-9849.63,0.00033649,21]
[356440422,1742459433110,-500.0,0.00033649,21]
[356440424,1742459433120,-151.0,0.00033649,14]
[356440426,1742459433131,-151.0,0.00033649,14]
[356440428,1742459433141,-500.0,0.00033649,21]
[356440430,1742459433152,-22416.20609229,0.0003365,21]
[356440432,1742459433162,-260.086787,0.0003365,14]
[356440434,1742459433173,-260.086787,0.0003365,14]
[356440471,1742459433512,-151.0,0.0003365,14]
[356440473,1742459433523,-382.932265,0.0003365,14]
[356440475,1742459433533,-382.932265,0.0003365,14]
[356440477,1742459433543,-151.0,0.0003365,14]
[356440479,1742459433553,-520.97317458,0.00033673,5]
[356440481,1742459433564,-500.0,0.00033673,5]
[356440483,1742459433574,-500.0,0.00033673,5]
[356440484,1742459433584,-500.89004114,0.00033673,5]
[356440486,1742459433594,-500.0,0.00033673,5]
[356440488,1742459433604,-328.23845641,0.00033673,5]
[356440490,1742459433614,-500.0,0.00033673,5]
[356440492,1742459433624,-500.0,0.00033673,5]
[356440494,1742459433634,-500.0,0.00033673,5]
[356440496,1742459433644,-500.0,0.00033673,5]
[356440498,1742459433654,-290.07439077,0.00033673,5]
[356440500,1742459433664,-500.0,0.00033673,5]
[356440502,1742459433675,-500.0,0.00033673,5]
[356440504,1742459433685,-501.83621488,0.00033673,5]
[356440506,1742459433695,-500.0,0.00033673,5]
[356440509,1742459433705,-500.0,0.00033673,5]
[356440511,1742459433722,-500.0,0.00033673,5]
[356440513,1742459433732,-500.0,0.00033673,5]
[356440514,1742459433741,-501.81664954,0.00033673,5]
[356440516,1742459433752,-500.0,0.00033673,5]
[356440518,1742459433763,-500.0,0.00033673,5]
[356440520,1742459433776,-294.96306519,0.00033673,5]
[356440523,1742459433786,-2363.0068355,0.00033679,2]
[356440524,1742459433796,-2152.06620706,0.00033679,2]
[356440527,1742459433807,-1181.50341775,0.00033688,2]
[356440528,1742459433817,-1076.03310353,0.00033688,2]
[356440531,1742459433828,-155.08744964,0.00033689,20]
[356440532,1742459433838,-828.41867336,0.00033689,20]
[356440535,1742459433851,-1538.96,0.00033689,21]
[356440537,1742459433862,-500.0,0.00033689,21]
[356440539,1742459433872,-17640.89,0.00033689,21]
[356440541,1742459433882,-11727.88,0.00033689,21]
[356440543,1742459433892,-460.152866,0.00033689,14]
[356440545,1742459433902,-3439.89,0.00033689,21]
[356440547,1742459433912,-460.152866,0.00033689,14]
[356440548,1742459433922,-803.65,0.00033689,21]
[356440551,1742459433932,-4104.47,0.00033689,21]
[356440553,1742459433942,-1204.96,0.00033689,21]
[356440554,1742459433951,-165.783245,0.00033689,14]
[356440557,1742459433962,-151.0,0.00033689,14]
[356440558,1742459433972,-5931.0,0.00033689,21]
[356440560,1742459433982,-13574.3,0.00033689,21]
[356440563,1742459433992,-494.21217,0.00033689,14]
[356440565,1742459434004,-32047.57,0.00033689,21]
[356440567,1742459434014,-844.943175,0.00033689,14]
[356440569,1742459434025,-844.943175,0.00033689,14]
[356440571,1742459434035,-844.943175,0.00033689,14]
[356440573,1742459434046,-844.943175,0.00033689,14]
[356440575,1742459434056,-500.0,0.00033689,21]
[356440577,1742459434066,-233.070917,0.00033689,14]
[356440579,1742459434075,-233.070917,0.00033689,14]
[356440581,1742459434087,-151.0,0.00033689,14]
[356440583,1742459434096,-151.0,0.00033689,14]
[356440585,1742459434106,-697.46,0.00033689,21]
[356440587,1742459434116,-233.070917,0.00033689,14]
[356440589,1742459434126,-233.070917,0.00033689,14]
[356440591,1742459434136,-789.23,0.00033689,21]
[356440593,1742459434145,-548.37435697,0.00033689,21]
[356440595,1742459434155,-7234.26,0.00033689,21]
[356440597,1742459434166,-4456.1,0.00033689,21]
[356440599,1742459434176,-260.086787,0.00033689,14]
[356440601,1742459434186,-260.086787,0.00033689,14]
[356440603,1742459434196,-260.086787,0.00033689,14]
[356440605,1742459434206,-260.086787,0.00033689,14]
[356440607,1742459434216,-260.086787,0.00033689,14]
[356440609,1742459434226,-260.086787,0.00033689,14]
[356440612,1742459434237,-260.086787,0.00033689,14]
[356440614,1742459434248,-260.086787,0.00033689,14]
[356440616,1742459434258,-4682.68,0.00033689,21]
[356440617,1742459434269,-151.0,0.00033689,14]
[356440619,1742459434279,-151.0,0.00033689,14]
[356440622,1742459434290,-151.0,0.00033689,14]
[356440624,1742459434301,-151.0,0.00033689,14]
[356440626,1742459434310,-500.0,0.00033689,21]
[356440628,1742459434320,-382.932265,0.00033689,14]
[356440630,1742459434331,-382.932265,0.00033689,14]
[356440632,1742459434341,-382.932265,0.00033689,14]
[356440634,1742459434352,-382.932265,0.00033689,14]
[356440636,1742459434362,-382.932265,0.00033689,14]
[356440638,1742459434373,-382.932265,0.00033689,14]
[356440640,1742459434383,-382.932265,0.00033689,14]
[356440642,1742459434395,-382.932265,0.00033689,14]
[356440644,1742459434406,-3961.92,0.00033689,21]
[356440646,1742459434416,-5065.0,0.00033689,21]
[356440648,1742459434426,-511.41,0.00033689,21]
[356440650,1742459434435,-151.0,0.00033689,14]
[356440652,1742459434446,-151.0,0.00033689,14]
[356440654,1742459434456,-151.0,0.00033689,14]
[356440656,1742459434466,-151.0,0.00033689,14]
[356440658,1742459434476,-151.0,0.00033689,14]
[356440660,1742459434486,-8270.52392425,0.0003369,2]
[356440662,1742459434496,-7532.23172471,0.0003369,2]
[356440664,1742459434505,-844.943175,0.0003369,14]
[356440666,1742459434515,-844.943175,0.0003369,14]
[356440668,1742459434524,-233.070917,0.0003369,14]
[356440670,1742459434533,-151.0,0.0003369,14]
[356440672,1742459434543,-233.070917,0.0003369,14]
[356440674,1742459434554,-260.086787,0.0003369,14]
[356440676,1742459434564,-260.086787,0.0003369,14]
[356440678,1742459434573,-151.0,0.0003369,14]
[356440680,1742459434583,-382.932265,0.0003369,14]
[356440682,1742459434592,-382.932265,0.0003369,14]
[356440684,1742459434602,-151.0,0.0003369,2]
[356440686,1742459434612,-609.54128727,0.0003369,2]
[356440688,1742459434621,-151.0,0.0003369,14]
[356440690,1742459434631,-1290.46,0.00033698,21]
[356440692,1742459434640,-500.0,0.00033698,21]
[356440694,1742459434650,-998.05,0.00033698,21]
[356440697,1742459434659,-500.0,0.00033698,21]
[356440698,1742459434668,-500.0,0.00033698,21]
[356440700,1742459434678,-1024.08,0.00033698,21]
[356440702,1742459434687,-2835.49,0.00033698,21]
[356440705,1742459434697,-460.152866,0.00033698,14]
[356440707,1742459434707,-460.152866,0.00033698,14]
[356440709,1742459434717,-460.152866,0.00033698,14]
[356440711,1742459434726,-460.152866,0.00033698,14]
[356440713,1742459434736,-500.0,0.00033698,21]
[356440715,1742459434746,-1164.42,0.00033698,21]
[356440717,1742459434757,-1815.66,0.00033698,21]
[356440719,1742459434771,-151.0,0.00033698,14]
[356440721,1742459434782,-151.0,0.00033698,14]
[356440722,1742459434792,-1115.68,0.00033698,21]
[356440724,1742459434802,-999.99,0.00033698,21]
[356440726,1742459434811,-844.943175,0.00033698,14]
[356440728,1742459434821,-844.943175,0.00033698,14]
[356440730,1742459434831,-844.943175,0.00033698,14]
[356440733,1742459434842,-500.0,0.00033698,21]
[356440735,1742459434853,-844.943175,0.00033698,14]
[356440737,1742459434863,-844.943175,0.00033698,14]
[356440739,1742459434873,-844.943175,0.00033698,14]
[356440741,1742459434882,-667.47,0.00033698,21]
[356440743,1742459434891,-233.070917,0.00033698,14]
[356440745,1742459434901,-233.070917,0.00033698,14]
[356440747,1742459434911,-233.070917,0.00033698,14]
[356440749,1742459434921,-151.0,0.00033698,14]
[356440751,1742459434932,-151.0,0.00033698,14]
[356440753,1742459434942,-249.339571,0.00033698,14]
[356440755,1742459434952,-233.070917,0.00033698,14]
[356440757,1742459434961,-233.070917,0.00033698,14]
[356440759,1742459434971,-233.070917,0.00033698,14]
[356440761,1742459434981,-1397.32,0.00033698,21]
[356440763,1742459434991,-515.02,0.00033698,21]
[356440765,1742459435001,-260.086787,0.00033698,14]
[356440767,1742459435011,-260.086787,0.00033698,14]
[356440769,1742459435023,-2193.85,0.00033698,21]
[356440771,1742459435032,-260.086787,0.00033698,14]
[356440773,1742459435042,-260.086787,0.00033698,14]
[356440775,1742459435052,-151.0,0.00033698,14]
[356440778,1742459435063,-151.0,0.00033698,14]
[356440780,1742459435073,-761.07,0.00033698,21]
[356440782,1742459435083,-382.932265,0.00033698,14]
[356440784,1742459435093,-382.932265,0.00033698,14]
[356440786,1742459435102,-500.0,0.00033698,21]
[356440788,1742459435111,-382.932265,0.00033698,14]
[356440790,1742459435121,-382.932265,0.00033698,14]
[356440792,1742459435131,-500.0,0.00033698,21]
[356440794,1742459435141,-813.05,0.00033698,21]
[356440796,1742459435150,-500.0,0.00033698,21]
[356440798,1742459435160,-248.717202,0.00033698,14]
[356440800,1742459435171,-500.0,0.00033698,21]
[356440802,1742459435180,-5931.0,0.00033699,21]
[356440804,1742459435190,-5931.0,0.00033699,21]
[356440806,1742459435200,-5931.0,0.00033699,21]
[356440808,1742459435210,-5931.0,0.00033699,21]
[356440810,1742459435220,-5931.0,0.00033699,21]
[356440812,1742459435230,-5931.0,0.00033699,21]
[356440814,1742459435240,-5931.0,0.00033699,21]
[356440816,1742459435249,-5931.0,0.00033699,21]
[356440818,1742459435259,-5931.0,0.00033699,21]
[356440820,1742459435270,-5931.0,0.00033699,21]
[356440822,1742459435280,-5931.0,0.00033699,21]
[356440824,1742459435289,-5931.0,0.00033699,21]
[356440826,1742459435299,-5931.0,0.00033699,21]
[356440828,1742459435309,-5931.0,0.00033699,21]
[356440830,1742459435319,-260.086787,0.00033699,14]
[356440832,1742459435328,-260.086787,0.00033699,14]
[356440834,1742459435338,-260.086787,0.00033699,14]
[356440836,1742459435348,-260.086781,0.00033699,14]
[356440838,1742459435357,-151.0,0.00033699,14]
[356440840,1742459435368,-196.460389,0.00033699,14]
[356440842,1742459435378,-382.932265,0.00033699,14]
[356440844,1742459435388,-382.932265,0.00033699,14]
[356440846,1742459435398,-382.932265,0.00033699,14]
[356440848,1742459435407,-382.932267,0.00033699,14]
[356440850,1742459435416,-2363.0068355,0.00033699,2]
[356440852,1742459435426,-2152.06620706,0.00033699,2]
[356440854,1742459435435,-168.538,0.000337,36]
[356440856,1742459435445,-1221.39,0.000337,21]
[356440858,1742459435455,-500.0,0.000337,2]
[356440861,1742459435465,-500.0,0.000337,21]
[356440862,1742459435475,-518.54569105,0.000337,2]
[356440865,1742459435485,-683.9,0.000337,21]
[356440867,1742459435494,-500.0,0.000337,21]
[356440868,1742459435504,-500.0,0.000337,2]
[356440871,1742459435514,-500.0,0.000337,21]
[356440873,1742459435524,-500.0,0.000337,21]
[356440874,1742459435533,-1952.92,0.000337,21]
[356440876,1742459435543,-500.0,0.000337,21]
[356440878,1742459435552,-500.0,0.000337,21]
[356440880,1742459435562,-1245.85,0.000337,21]
[356440882,1742459435571,-500.0,0.000337,21]
[356440884,1742459435580,-929.28,0.000337,21]
[356440886,1742459435590,-1242.59,0.000337,21]
[356440888,1742459435600,-500.0,0.000337,21]
[356440890,1742459435609,-1075.47,0.000337,21]
[356440892,1742459435619,-500.0,0.000337,21]
[356440894,1742459435628,-500.0,0.000337,21]
[356440896,1742459435637,-500.0,0.000337,21]
[356440898,1742459435646,-500.0,0.000337,21]
[356440900,1742459435656,-825.66,0.000337,21]
[356440902,1742459435665,-2489.69,0.000337,21]
[356440904,1742459435675,-500.0,0.000337,21]
[356440906,1742459435685,-500.0,0.000337,21]
[356440908,1742459435694,-538.39,0.000337,21]
[356440910,1742459435704,-500.0,0.000337,21]
[356440912,1742459435714,-811.22,0.000337,21]
[356440914,1742459435723,-151.0,0.000337,14]
[356440916,1742459435733,-151.0,0.000337,14]
[356440918,1742459435743,-151.0,0.000337,14]
[356440920,1742459435753,-151.0,0.000337,14]
[356440922,1742459435764,-1541.61,0.000337,21]
[356440924,1742459435778,-1765.65,0.000337,21]
[356440926,1742459435787,-500.0,0.000337,21]
[356440928,1742459435797,-500.0,0.000337,21]
[356440930,1742459435807,-1894.42,0.000337,21]
[356440933,1742459435817,-1939.41,0.000337,21]
[356440934,1742459435827,-973.47,0.000337,21]
[356440937,1742459435837,-500.0,0.000337,21]
[356440938,1742459435846,-500.0,0.000337,21]
[356440940,1742459435856,-500.0,0.000337,21]
[356440942,1742459435865,-767.6,0.000337,21]
[356440944,1742459435875,-1695.01,0.000337,21]
[356440946,1742459435884,-635.48,0.000337,21]
[356440948,1742459435893,-1000.0,0.000337,21]
[356440950,1742459435902,-500.0,0.000337,21]
[356440959,1742459435972,-362.72562,0.000337,14]
[356440960,1742459435983,-362.72562,0.000337,14]
[356440962,1742459435992,-362.72562,0.000337,14]
[356440965,1742459436002,-362.72562,0.000337,14]
[356440967,1742459436012,-362.72562,0.000337,14]
[356440968,1742459436021,-852.78,0.000337,21]
[356440970,1742459436031,-362.72562,0.000337,14]
[356440973,1742459436041,-362.72562,0.000337,14]
[356440975,1742459436051,-362.72562,0.000337,14]
[356440977,1742459436061,-362.72562,0.000337,14]
[356440979,1742459436071,-362.72562,0.000337,14]
[356440980,1742459436080,-1710.0,0.000337,21]
[356440982,1742459436089,-2469.63,0.000337,21]
[356440984,1742459436099,-500.0,0.000337,21]
[356440986,1742459436109,-2389.19,0.000337,21]
[356440988,1742459436118,-3478.95,0.000337,2]
[356440990,1742459436127,-164.917453,0.000337,14]
[356440992,1742459436136,-1848.3,0.000337,21]
[356440994,1742459436146,-500.0,0.000337,21]
[356440996,1742459436156,-151.0,0.000337,14]
[356440999,1742459436165,-151.0,0.000337,14]
[356441000,1742459436174,-151.0,0.000337,14]
[356441002,1742459436184,-253.405045,0.000337,14]
[356441005,1742459436194,-500.0,0.000337,21]
[356441007,1742459436204,-563.31,0.000337,21]
[356441008,1742459436213,-500.0,0.000337,21]
[356441010,1742459436223,-508.30906614,0.000337,21]
[356441012,1742459436232,-2269.38,0.000337,21]
[356441014,1742459436241,-507.58,0.000337,21]
[356441016,1742459436250,-1280.57,0.000337,21]
[356441018,1742459436259,-293.49643781,0.000337,21]
[356441020,1742459436268,-500.0,0.000337,21]
[356441022,1742459436278,-979.63,0.000337,21]
[356441024,1742459436287,-250.21017,0.000337,14]
[356441026,1742459436297,-250.21017,0.000337,14]
[356441028,1742459436306,-250.21017,0.000337,14]
[356441030,1742459436315,-250.21017,0.000337,14]
[356441032,1742459436324,-250.21017,0.000337,14]
[356441034,1742459436334,-250.21017,0.000337,14]
[356441036,1742459436343,-500.0,0.000337,21]
[356441038,1742459436352,-250.21017,0.000337,14]
[356441040,1742459436361,-500.0,0.000337,21]
[356441042,1742459436371,-250.21017,0.000337,14]
[356441044,1742459436381,-250.21017,0.000337,14]
[356441046,1742459436390,-250.21017,0.000337,14]
[356441048,1742459436400,-250.21017,0.000337,14]
[356441050,1742459436409,-250.21017,0.000337,14]
[356441052,1742459436418,-250.21017,0.000337,14]
[356441054,1742459436428,-250.21017,0.000337,14]
[356441056,1742459436437,-250.21017,0.000337,14]
[356441058,1742459436447,-250.21017,0.000337,14]
[356441061,1742459436456,-500.0,0.000337,21]
[356441063,1742459436466,-151.0,0.000337,14]
[356441065,1742459436476,-151.0,0.000337,14]
[356441067,1742459436485,-151.0,0.000337,14]
[356441069,1742459436494,-151.0,0.000337,14]
[356441071,1742459436504,-151.0,0.000337,14]
[356441073,1742459436514,-151.0,0.000337,14]
[356441075,1742459436523,-151.0,0.000337,14]
[356441077,1742459436532,-151.0,0.000337,14]
[356441078,1742459436542,-151.0,0.000337,14]
[356441081,1742459436552,-151.0,0.000337,14]
[356441082,1742459436561,-500.0,0.000337,21]
[356441085,1742459436571,-177.524591,0.000337,14]
[356441087,1742459436581,-1574.28,0.000337,21]
[356441088,1742459436590,-500.0,0.000337,21]
[356441091,1742459436600,-1977.63,0.000337,21]
[356441093,1742459436610,-500.0,0.000337,21]
[356441094,1742459436619,-500.0,0.000337,21]
[356441096,1742459436629,-500.0,0.000337,21]
[356441098,1742459436638,-500.0,0.000337,21]